Cogmind - Beta 13 @@@ ROGUE MODE // 2024.04.06 @ 19:08:09 Player: mami Result: Destroyed by Autobeam Turret with Autobeam Performance ------------- Evolutions (0) 0 Regions Visited (3) 600 Robots Destroyed (25) 125 Value Destroyed (733) 733 Prototype IDs (2) 40 Alien Tech Used (0) 0 Bonus (12) 12 TOTAL SCORE: 1510 Bonus ------- Follower Combat Kills 25 Friendly Fire -13 Cogmind --------- Core Integrity 0/250 Matter 294/300 Energy 150/150 System Corruption 0% Temperature Cool (12) Movement Rolling (110) Location -10/Subcaves Parts ------- > --- POWER (1) -------- Light Angular Momentum Engine > --- PROPULSION (2) --- Subdweller Monowheel Subdweller Monowheel > --- UTILITY (2) ------ Medium Storage Unit Sensor Array > --- WEAPON (2) ------- Beamcaster Enhanced Flamer > --- INVENTORY (10) --- Light Angular Momentum Engine Carbon-fiber Leg Wheel Medium Storage Unit Signal Interpreter Scrap Shield Subdweller Beam Cannon Multitool Signal Generator Peak State ------------ > --- POWER ------------ Light Angular Momentum Engine > --- PROPULSION ------- Subdweller Monowheel Subdweller Monowheel > --- UTILITY ---------- Medium Storage Unit Sensor Array > --- WEAPON ----------- Beamcaster Enhanced Flamer > --- INVENTORY -------- Improved Ion Engine Light Angular Momentum Engine Wheel Medium Storage Unit Signal Interpreter Scrap Shield Subdweller Beam Cannon Multitool Signal Generator [Rating: 21] Favorites ----------- Power Improved Ion Engine Engine Improved Ion Engine Propulsion Aluminum Leg Leg Aluminum Leg Wheel Subdweller Monowheel Utility Medium Storage Unit Device Seismic Detector Storage Medium Storage Unit Weapon Beamcaster Energy Gun Beamcaster Energy Cannon Subdweller Beam Cannon Ballistic Gun Assault Rifle Launcher Rocket Launcher Special Weapon Flamer Special Melee Weapon Datajack Build | -11 -10 -10 -10 ------- Run | Yrd Mat Min Sub Slots Evolved . | . . . . Power . | . . . . Propulsion . | . . . . Utility . | . . . . Weapon . | . . . . Parts Attached 33 | 5 10 9 9 Power 5 | 1 1 1 2 Engine 5 | 1 1 1 2 Core . | . . . . Reactor . | . . . . Propulsion 6 | 2 . 2 2 Treads . | . . . . Leg 4 | 2 . 2 . Wheel 2 | . . . 2 Hover . | . . . . Flight . | . . . . Utility 4 | . 3 . 1 Device 2 | . 1 . 1 Storage 2 | . 2 . . Processor . | . . . . Hackware . | . . . . Protection . | . . . . Artifact . | . . . . Weapon 18 | 2 6 6 4 Energy Gun 8 | 2 3 2 1 Energy Cannon 1 | . . . 1 Ballistic Gun 1 | . 1 . . Ballistic Cannon . | . . . . Launcher 4 | . 2 2 . Special Weapon 3 | . . 1 2 Impact Weapon . | . . . . Slashing Weapon . | . . . . Piercing Weapon . | . . . . Special Melee Weapon 1 | . . 1 . Unidentified Prototypes . | . . . . Parts Lost 9 | . 6 3 . Power 2 | . 2 . . Propulsion 3 | . 2 1 . Utility . | . . . . Weapon 4 | . 2 2 . Highest Loss Streak 5 | . 5 3 . To Critical Strikes . | . . . . Average Slot Usage (%) 86 | . 92 80 88 Engine 13 | . 13 14 14 Leg 15 | . 25 13 10 Wheel 2 | . . . 7 Device 13 | . 12 14 14 Storage 13 | . 12 14 14 Energy Gun 14 | . 18 14 11 Ballistic Gun 1 | . 5 . . Launcher 5 | . 2 10 . Special Weapon 2 | . . . 8 Special Melee Weapon 1 | . . . 5 Naked Turns . | . . . . Heaviest Build 28 | 5 22 27 28 Greatest Support 40 | 20 20 10 40 Greatest Overweight (x) 8 | . 7 8 2 Average Overweight (x) 1 | . . 2 1 Largest Inventory Capacity 10 | 5 10 10 10 Average Capacity 9 | 5 9 10 10 Most Carried 10 | 3 10 10 10 Average Carried 8 | 1 8 9 9 Final Capacity 10 | 5 10 10 10 Final Carried 10 | 3 10 9 10 Class Distribution -------------------- 97% | Mutant Dominant Class ---------------- Mutant | -10/Materials Mutant | -10/Mines Mutant | -10/Subcaves Resources | -11 -10 -10 -10 ----------- Run | Yrd Mat Min Sub Matter Collected 709 | 250 89 276 94 Remotely . | . . . . Salvage Created 883 | 34 534 223 92 Parts 38 | 2 24 6 6 Haulers Intercepted . | . . . . Recyclers Shooed . | . . . . Parts Field Recycled . | . . . . Retrieved Matter . | . . . . Parts Self-Destructed 23 | . . . 23 Prevented . | . . . . Kills | -11 -10 -10 -10 ------- Run | Yrd Mat Min Sub Combat Hostiles Destroyed 19 | 1 8 6 4 Guns 10 | 1 4 3 2 Cannons 2 | . . . 2 AOE 7 | . 4 3 . Classes Destroyed 6 | 1 3 . 2 Worker 1 | . 1 . . Recycler 3 | . 3 . . Watcher 2 | . 2 . . Swarmer 2 | . . . 2 Grunt 15 | 1 8 6 . Subdweller 2 | . . . 2 Best Kill Streak 6 | 1 6 4 2 Combat Bots Only 4 | 1 3 4 2 Max Kills in Single Turn 2 | 1 2 2 1 Gunslinging . | . . . . Exploded 2 | . 2 2 . Melee . | . . . . Uniques/NPCs Destroyed . | . . . . Combat | -11 -10 -10 -10 -------- Run | Yrd Mat Min Sub Hostile Shots Fired 158 | 3 100 33 22 Missed 50 | 2 24 17 7 Damage Taken 1290 | 10 825 311 144 Core 258 | . 134 63 61 Absorbed by Shields . | . . . . Core Remaining (%) 100 | 100 . . . Volleys Fired 63 | 3 33 11 16 Largest 2 | 2 2 2 2 Hottest 175 | 80 83 108 175 Shots Fired 107 | 6 60 18 23 Gun 79 | 6 51 11 11 Cannon 5 | . . . 5 Launcher 16 | . 9 7 . Special 7 | . . . 7 Kinetic 18 | . 18 . . Thermal 73 | 6 33 11 23 Explosive 16 | . 9 7 . Electromagnetic . | . . . . Robot Hit Streak 9 | 3 9 2 4 Robot Miss Streak 3 | 1 3 2 2 Penetration Max . | . . . . Secondary Targets . | . . . . Shots Hit Robots 63 | 4 37 7 15 Core Hits 45 | 2 25 10 8 Critical Kills . | . . . . Critical Parts Destroyed . | . . . . Critical Strikes 2 | . 1 . 1 Burn 2 | . 1 . 1 Melee Attacks . | . . . . Impact . | . . . . Slashing . | . . . . Piercing . | . . . . Sneak Attacks . | . . . . Combat Hostiles . | . . . . Follow-up Attacks . | . . . . Damage Inflicted 1877 | 42 1038 499 298 Guns 757 | 42 413 116 186 Cannons 79 | . . . 79 Explosions 1008 | . 625 383 . Melee . | . . . . Ramming . | . . . . Kinetic 193 | . 193 . . Thermal 676 | 42 220 116 298 Explosive 1008 | . 625 383 . Electromagnetic . | . . . . Impact . | . . . . Slashing . | . . . . Piercing . | . . . . Highest Corruption . | . . . . Average Corruption . | . . . . Corruption Purged . | . . . . Corruption Blocked . | . . . . Overload Shots . | . . . . Overflow Damage 43 | . 9 28 6 Projectiles 6 | . . . 6 Explosions 37 | . 9 28 . Melee . | . . . . Knockbacks . | . . . . Impact . | . . . . Kinetic . | . . . . Secondary . | . . . . Self-Inflicted Damage 88 | . . 88 . Shots 4 | . . 4 . Rammed . | . . . . Targets Rammed . | . . . . Kicked . | . . . . Crushed . | . . . . Highest Temperature 251 | 60 139 222 251 Average Temperature 61 | 31 57 74 64 Received Heat Transfer 946 | 6 456 141 343 Siege Activations . | . . . . Robots Corrupted . | . . . . Combat Hostiles . | . . . . Parts Fried . | . . . . Impact Corruptions . | . . . . Robots Melted . | . . . . Combat Hostiles . | . . . . Parts Melted 3 | 1 . 1 1 Heat Transferred 1774 | 100 657 259 758 Parts Sabotaged . | . . . . Parts Stolen . | . . . . Parts Stripped . | . . . . Power Chain Reactions . | . . . . Alert | -11 -10 -10 -10 ------- Run | Yrd Mat Min Sub Peak Influence 206 | 20 206 119 . Initial 30 | . 13 30 . Average 45 | 4 89 29 . Maximum Alert Level 1 | . 1 . . Low Security (%) 98 | 100 95 100 . Level 1 1 | . 4 . . Level 2 . | . . . . Level 3 . | . . . . Level 4 . | . . . . Level 5 . | . . . . High Security . | . . . . Max Security . | . . . . Squads Dispatched 4 | . 3 1 . Investigation 1 | . 1 . . Extermination . | . . . . Reinforcement 2 | . 2 . . Assault 1 | . . 1 . Garrison . | . . . . Intercept . | . . . . Searches Triggered . | . . . . Construction Impeded . | . . . . Haulers Reinforced . | . . . . Active Scanning Responses . | . . . . Cargo Convoy Interrupts . | . . . . Stealth | -11 -10 -10 -10 --------- Run | Yrd Mat Min Sub Distress Signals . | . . . . Communications Jammed . | . . . . Distress Signals . | . . . . Times Spotted 43 | 1 13 9 20 Peak Tracking Total 6 | 1 5 4 6 Tactical Retreats 2 | . . . 2 Traps | -11 -10 -10 -10 ------- Run | Yrd Mat Min Sub Traps Triggered 1 | . 1 . . Indirectly . | . . . . Trap Hack Attempts . | . . . . Triggered . | . . . . Disarmed . | . . . . Reprogrammed . | . . . . Reused . | . . . . Traps Extracted . | . . . . Installed . | . . . . Triggered . | . . . . Machines | -11 -10 -10 -10 ---------- Run | Yrd Mat Min Sub Machines Disabled 3 | . 2 . 1 Max in Single Turn 1 | . 1 . 1 Machines Repaired . | . . . . Machines Dismantled . | . . . . Machines Sabotaged . | . . . . Overloaded Fab Kills . | . . . . Hacking | -11 -10 -10 -10 --------- Run | Yrd Mat Min Sub Machines Accessed 1 | . 1 . . Terminals 1 | . 1 . . Fabricators . | . . . . Repair Stations . | . . . . Recycling Units . | . . . . Scanalyzers . | . . . . Garrison Access . | . . . . Total Hacks 5 | . 5 . . Successful 2 | . 2 . . Failed 3 | . 3 . . Catastrophic . | . . . . Database Lockouts . | . . . . Manual . | . . . . Terminals 5 | . 5 . . Fabricators . | . . . . Repair Stations . | . . . . Recycling Units . | . . . . Scanalyzers . | . . . . Garrison Access . | . . . . Terminal Hacks 2 | . 2 . . Prototype ID Bank 1 | . 1 . . Dispatch Records 1 | . 1 . . Fabricator Hacks . | . . . . Repair Station Hacks . | . . . . Recycling Unit Hacks . | . . . . Scanalyzer . | . . . . Garrison Access Hacks . | . . . . Unauthorized Hacks . | . . . . Terminals . | . . . . Fabricators . | . . . . Repair Stations . | . . . . Recycling Units . | . . . . Scanalyzers . | . . . . Garrison Access . | . . . . Data Cores Recovered . | . . . . Used . | . . . . Hacking Detections 1 | . 1 . . Full Trace Events . | . . . . Feedback Events . | . . . . Feedback Blocked . | . . . . Robot Schematics Acquired . | . . . . Robots Built . | . . . . Authchips . | . . . . Time . | . . . . Total Robot Build Rating . | . . . . Part Schematics Acquired . | . . . . Parts Built . | . . . . Authchips . | . . . . Time . | . . . . Total Part Build Rating . | . . . . Parts Repaired . | . . . . Time . | . . . . Parts Recycled . | . . . . Recycled Matter . | . . . . Retrieved Matter . | . . . . Retrieved Components . | . . . . Parts Scanalyzed . | . . . . Part Schematics Acquired . | . . . . Parts Damaged . | . . . . Bothacking | -11 -10 -10 -10 ------------ Run | Yrd Mat Min Sub Used RIF Installer . | . . . . Robots Hacked . | . . . . Non-combat . | . . . . Combat . | . . . . Robot Hacks Applied . | . . . . Relay Couplers Released . | . . . . Fabnet Peak Effective % . | . . . . Robots Rewired . | . . . . Allies Hacked . | . . . . Hacks Repelled . | . . . . Allies | -11 -10 -10 -10 -------- Run | Yrd Mat Min Sub Total Allies 1 | . . 1 . Largest Group 1 | . . 1 . Highest-Rated Group 31 | . . 31 . Highest-Rated Ally 31 | . . 31 . Total Orders . | . . . . Ally Attacks 5 | . . 5 . Total Damage 85 | . . 85 . Kills 1 | . . 1 . Allies Corrupted . | . . . . Allies Melted . | . . . . Intel | -11 -10 -10 -10 ------- Run | Yrd Mat Min Sub Robot Analysis Total . | . . . . Derelict Logs Recovered 1 | . . 1 . Drone Launches . | . . . . Drone Recoveries . | . . . . Exploration | -11 -10 -10 -10 ------------- Run | Yrd Mat Min Sub Turns Passed 2209 | 114 466 957 672 Spaces Moved 955 | 88 223 347 297 Core 34 | 19 8 7 . Treads . | . . . . Legs 800 | 69 215 340 176 Wheels 121 | . . . 121 Hover . | . . . . Flight . | . . . . Fastest Speed 50 | 50 120 260 110 Average Speed 198 | 104 134 262 198 Slowest Speed 450 | 120 400 450 260 Overloaded Moves . | . . . . Propulsion Burnouts . | . . . . Robots Hopped . | . . . . Cave-ins Triggered . | . . . . Exploration Rate (%) 33 | 6 36 73 20 Regions Visited 3 Branch Regions 2 Pre-discovered Areas . | . . . . Known Exits Taken . | . . . . Unknown Exits Taken 3 | 1 1 1 . Scrap Searched . | . . . . Spaces Dug . | . . . . Terrain Destroyed 109 | . 33 75 1 Melee . | . . . . Projectile 1 | . . . 1 AOE 108 | . 33 75 . Terrain Rammed . | . . . . Walls Destroyed . | . . . . Machines Disabled . | . . . . Actions | -11 -10 -10 -10 --------- Run | Yrd Mat Min Sub Total 1166 | 103 335 375 353 Wait 36 | . 33 1 2 Move 952 | 87 222 346 297 Hop . | . . . . Pick Up 53 | 8 24 6 15 Fast Attach . | . . . . Attach 18 | 5 5 7 1 Detach 1 | . . 1 . Swap 15 | . 5 2 8 Drop 28 | . 13 1 14 Fire 63 | 3 33 11 16 Melee . | . . . . Ram . | . . . . Kick . | . . . . Crush . | . . . . Escape Stasis . | . . . . Rewire . | . . . . Trap . | . . . . Miscellaneous . | . . . . Route ------- -11/Scrapyard -10/Materials -10/Mines -10/Subcaves (discovered 1 exit: [*Rec]) History --------- Turn | Location | Event 2 | -11/Scrapyard | Met Revision 17 76 | -11/Scrapyard | Discovered new exit (range 8) 115 | -11/Scrapyard | Entered Materials 303 | -10/Materials | Build established: Mutant 347 | -10/Materials | Discovered new exit (range 15) 552 | -10/Materials | Core integrity fell below 50% 581 | -10/Materials | Entered Mines 586 | -10/Mines | Met a Derelict bent on vengeance 607 | -10/Mines | Lost 5 parts (1p2n2w) 721 | -10/Mines | Met a Derelict testing a Signal Generator 725 | -10/Mines | Learned Materials garrison access intel 738 | -10/Mines | Found Signal Generator 1329 | -10/Mines | Lost 3 parts (1n2w) 1519 | -10/Mines | Discovered new exit (range 6) 1538 | -10/Mines | Entered Subcaves 1716 | -10/Subcaves | Ambushed by swarm of Subdwellers 1722 | -10/Subcaves | Core integrity fell below 20% 2202 | -10/Subcaves | Discovered new exit (range 10) 2210 | -10/Subcaves | Destroyed by Autobeam Turret with Autobeam Last Messages --------------- Acquired 12 matter. Flight Unit fries itself beyond repair. Dropped Armor Integrity Analyzer. Acquired Carbon-fiber Leg. Lgt. Ion Engine fries itself beyond repair. Dropped Flamer. Acquired Beamcaster. Dropped Carbon-fiber Leg. Acquired Wheel. Dropped Imp. Ion Engine. Acquired Carbon-fiber Leg. Dropped Wheel. Acquired Wheel. JN-EM8(O) collects matter. Acquired 6 matter. JN-EM8(O) collects matter. Acquired 8 matter. EXIT=FOUND Machine disabled. JN-EM8(O) collects matter. Map ----- +----------------------------------------------------+ | ?????????????????## ???? | | ????????????????## ???? | | ??????####??????# #### # ???? | | ??##### ##?????## #??????????????????? | | ?## ##?##### ##??????????????????? | | ## ### ####????????????????? | | # ## #???????????????? | | # ## #????????????? | | ## ## #???????????? | | # ######## #???????????? | | # ### ###???# #???????????? | | # #?## ##??## ## #???????????? | | ##??## " ####### ##??#???????????? | | #????#""" #??###???????????????? | | ##???##" #????????????????????? | | #????# ##???????????????????? | | #????## #???????????????????? | | ## # #?????# "#???????????????????? | | ?# # ##?????## ## "#???????????????????? | | ??## ## ##???#############???????????????????? | | ??## #######????#"" "?????????????????????????? | | ### ########?#" ?####????????????????????? | | &&%*!*&#?#" ## ##???????????????????? | | ! *&!%&%%###""t #???????????????????? | | "!* % !#=#!"%#< #????????????????????? | | #"&! "##!&""##""t @ #?????????????????????? | | ##"!%! ## / ####" #O #?????????????????????? | | ?##&!* ## ##?#" ??# #?????????????????????? | | ?##%%[ ###### ###""????#! #???####??????????????? | | ##=% |##????# ##?????##! #???# #??????????????? | | # ***##?????# #?????#; !##?## #??????????????? | | ######??# #?????## ### ##?????????????? | | ##"# #??# #??????# & | #?????????????? | | "" ##?# #??????## #?????????????? | | "" ### ####????# * #?????????????? | | # # #" ##???# * #?????????????? | | ## ####" #???#= ##?????????????? | | ?## ##?#" #???# ### #??????????????? | | ?## #?##" ###### #### #??????????????? | | ?#" ######## ###?# ### ###????????????? | | ###" ##?## ##??# ## #????????????? | | "" " ### ## #?## ###??????????? | | !% ##"" ## ### #??????????? | | " ## ! ##?????????? | | ### ## ##????????? | | #?## ### #### ## ##???????? | | ##?# ##?# ##??## ### ##??????? | | #?# ##??### ##????###### #??????? | | #?# ##????# ############## ##?????? | | ### ###### #????# ## [ ##????? | +----------------------------------------------------+ Best States ------------- Heat Dissipation 25 Energy Generation 18 Energy Capacity 265 Matter Stores 300 Matter Capacity 300 Sight Range 16 Robot Scan Range 14 Terrain Scan Density 10 Evasion (%) 55 Item Schematics ----------------- None Robot Schematics ------------------ None Fabricated ------------ Nothing Alien Tech Used ----------------- None Achievements -------------- None Challenges ------------ None Game ------ Seed LargeElectronTube Manual? 0 Play Time 00:32:09 Cumulative 5.4 hours Start 2024.04.06 @ 18:36:58 End 2024.04.06 @ 19:08:09 Sessions 1 Manual Loads 0 Difficulty Rogue Special Mode None Game No. 3 Rogue 3 Adventurer 0 Explorer 0 Win Type - Total 0 Types 0/0/0/0/0/0/0/0/0 Lore% 2 Gallery% 7 Achievement% 8 Wizard Run 0 Options --------- Layout 1 ASCII 0 Keyboard 0 Movement Mouse Keybinds 0 Fullscreen 2 Font 32/SmallcapsGlow Map View 50x35 Zoom Use 0% Tactical HUD 0 Map Filters NONE Filters NONE Steam 1 RUN: 94f95a9a-f5a0-424f-b6d3-4632ba3a3855